fUSD/lending_fUSD_20250923
["ID","MTS","AMOUNT","RATE_DAILY","PERIOD"]
[387176101,1758606685107,-631.18,0.00021619,2]
[387176102,1758606685116,-400.0,0.00021638,2]
[387176103,1758606685125,-479.31,0.00021638,2]
[387176104,1758606685134,-626.98,0.00021638,2]
[387176105,1758606685144,-400.0,0.00021638,2]
[387176106,1758606685154,-600.75,0.00021638,2]
[387176107,1758606685164,-595.41,0.00021638,2]
[387176108,1758606685177,-400.0,0.00021638,2]
[387176109,1758606685197,-400.0,0.00021638,2]
[387176110,1758606685211,-400.0,0.00021638,2]
[387176111,1758606685228,-400.0,0.00021638,2]
[387176112,1758606685245,-400.0,0.00021638,2]
[387176113,1758606685262,-400.0,0.00021638,2]
[387176114,1758606685275,-609.2,0.00021638,2]
[387176115,1758606685291,-400.0,0.00021638,2]
[387176116,1758606685308,-400.0,0.00021638,2]
[387176117,1758606685325,-400.0,0.00021638,2]
[387176118,1758606685342,-572.39,0.00021638,2]
[387176119,1758606685357,-400.0,0.00021638,2]
[387176120,1758606685374,-710.43,0.00021638,2]
[387176121,1758606685390,-400.0,0.00021638,2]
[387176122,1758606685406,-633.16,0.00021638,2]
[387176123,1758606685419,-400.0,0.00021638,2]
[387176124,1758606685433,-473.7,0.00021638,2]
[387176125,1758606685450,-400.0,0.00021638,2]
[387176126,1758606685461,-719.16,0.00021638,2]
[387176127,1758606685479,-407.66,0.00021638,2]
[387176128,1758606685491,-619.74,0.00021638,2]
[387176129,1758606685506,-637.23,0.00021638,2]
[387176130,1758606685519,-474.07,0.00021638,2]
[387176131,1758606685533,-872.07,0.00021638,2]
[387176132,1758606685546,-400.0,0.00021638,2]
[387176133,1758606685559,-1253.57,0.00021638,2]
[387176134,1758606685573,-400.0,0.00021638,2]
[387176135,1758606685586,-702.37,0.00021638,2]
[387176136,1758606685600,-400.0,0.00021638,2]
[387176137,1758606685615,-400.0,0.00021638,2]
[387176138,1758606685629,-400.0,0.00021638,2]
[387176139,1758606685643,-400.0,0.00021638,2]
[387176140,1758606685656,-803.52,0.00021638,2]
[387176141,1758606685670,-623.72,0.00021638,2]
[387176142,1758606685684,-758.11,0.00021638,2]
[387176143,1758606685697,-400.0,0.00021638,2]
[387176144,1758606685712,-400.0,0.00021638,2]
[387176145,1758606685725,-944.55,0.00021638,2]
[387176146,1758606685738,-887.18,0.00021638,2]
[387176147,1758606685752,-400.0,0.00021639,2]
[387176148,1758606685766,-400.0,0.00021639,2]
[387176149,1758606685779,-472.77,0.00021639,2]
[387176150,1758606685792,-400.0,0.00021639,2]
[387176151,1758606685810,-373.76229471,0.00021639,2]
[387176152,1758606685829,-400.0,0.00021639,2]
[387176153,1758606685843,-560.23,0.00021639,2]
[387176154,1758606685857,-400.0,0.00021639,2]
[387176155,1758606685871,-400.0,0.00021639,2]
[387176156,1758606685883,-502.61,0.00021639,2]
[387176157,1758606685898,-694.79,0.00021639,2]
[387176158,1758606685911,-1317.09,0.00021639,2]
[387176159,1758606685925,-1372.63,0.00021639,2]
[387176160,1758606685938,-943.76,0.00021639,2]
[387176161,1758606685951,-400.0,0.00021639,2]
[387176162,1758606685965,-400.0,0.00021639,2]
[387176163,1758606685981,-543.44,0.00021639,2]
[387176164,1758606685996,-867.38,0.00021639,2]
[387176165,1758606686010,-400.0,0.00021639,2]
[387176166,1758606686023,-400.0,0.00021639,2]
[387176167,1758606686038,-1566.28,0.00021639,2]
[387176168,1758606686052,-1508.0,0.0002164,2]
[387176169,1758606686065,-500.0,0.0002164,2]
[387176170,1758606686079,-500.0,0.0002164,2]
[387176171,1758606686092,-466.0,0.0002164,2]
[387176172,1758606686105,-447.0,0.0002164,2]
[387176173,1758606686119,-500.0,0.0002164,2]
[387176174,1758606686132,-400.0,0.0002164,2]
[387176175,1758606686146,-400.0,0.0002164,2]
[387176176,1758606686159,-403.17,0.0002164,2]
[387176177,1758606686173,-400.0,0.0002164,2]
[387176178,1758606686186,-400.0,0.0002164,2]
[387176179,1758606686199,-400.0,0.0002164,2]
[387176180,1758606686212,-400.0,0.0002164,2]
[387176181,1758606686225,-422.99,0.0002164,2]
[387176182,1758606686237,-400.0,0.0002164,2]
[387176183,1758606686251,-444.45244754,0.0002164,2]
[387176184,1758606686264,-400.0,0.0002164,2]
[387176185,1758606686277,-400.0,0.0002164,2]
[387176186,1758606686290,-400.0,0.0002164,2]
[387176187,1758606686303,-400.0,0.0002164,2]
[387176188,1758606686316,-400.0,0.0002164,2]
[387176189,1758606686329,-534.93655572,0.0002164,2]
[387176190,1758606686343,-400.0,0.0002164,2]
[387176191,1758606686355,-400.0,0.0002164,2]
[387176192,1758606686369,-400.0,0.0002164,2]
[387176193,1758606686382,-500.0,0.0002164,14]
[387176194,1758606686395,-400.0,0.0002164,2]
[387176195,1758606686408,-400.0,0.0002164,2]
[387176196,1758606686425,-400.0,0.0002164,2]
[387176197,1758606686438,-400.0,0.0002164,2]
[387176198,1758606686450,-411.68,0.0002164,2]
[387176199,1758606686463,-549.81153047,0.0002164,2]
[387176200,1758606686476,-400.0,0.0002164,2]
[387176201,1758606686490,-400.0,0.0002164,2]
[387176202,1758606686503,-400.0,0.0002164,2]
[387176203,1758606686516,-400.0,0.0002164,2]
[387176204,1758606686529,-400.0,0.0002164,2]
[387176205,1758606686542,-154.35,0.0002164,2]
[387176206,1758606686555,-400.0,0.0002164,2]
[387176207,1758606686568,-327.81739237,0.0002164,2]
[387176208,1758606686580,-400.0,0.0002164,2]
[387176209,1758606686593,-400.0,0.0002164,2]
[387176210,1758606686608,-400.0,0.0002164,2]
[387176211,1758606686620,-400.0,0.0002164,2]
[387176212,1758606686633,-400.0,0.0002164,2]
[387176213,1758606686646,-400.0,0.0002164,2]
[387176214,1758606686659,-400.0,0.0002164,2]
[387176215,1758606686673,-400.0,0.0002164,2]
[387176216,1758606686687,-400.0,0.0002164,2]
[387176217,1758606686701,-430.64,0.0002164,2]
[387176218,1758606686713,-400.0,0.0002164,2]
[387176219,1758606686726,-400.0,0.0002164,2]
[387176220,1758606686740,-400.0,0.0002164,2]
[387176221,1758606686753,-429.28,0.0002164,2]
[387176222,1758606686766,-400.0,0.0002164,2]
[387176223,1758606686780,-720.6,0.0002164,2]
[387176224,1758606686793,-400.0,0.0002164,2]
[387176225,1758606686808,-400.0,0.0002164,2]
[387176226,1758606686822,-400.0,0.0002164,2]
[387176227,1758606686835,-400.0,0.0002164,2]
[387176228,1758606686848,-400.0,0.0002164,2]
[387176229,1758606686862,-540.18,0.0002164,2]
[387176230,1758606686877,-400.0,0.0002164,2]
[387176231,1758606686893,-500.48,0.0002164,2]
[387176232,1758606686907,-460.67,0.0002164,2]
[387176233,1758606686920,-400.0,0.0002164,2]
[387176234,1758606686934,-400.0,0.0002164,2]
[387176235,1758606686947,-400.0,0.0002164,2]
[387176236,1758606686965,-400.0,0.0002164,2]
[387176237,1758606686978,-400.0,0.0002164,2]
[387176238,1758606686991,-400.0,0.0002164,2]
[387176239,1758606687005,-400.0,0.0002164,2]
[387176240,1758606687021,-400.0,0.0002164,2]
[387176241,1758606687039,-400.0,0.0002164,2]
[387176242,1758606687051,-400.0,0.0002164,2]
[387176243,1758606687064,-400.0,0.0002164,2]
[387176244,1758606687077,-707.53,0.0002164,2]
[387176245,1758606687342,-400.0,0.0002164,2]
[387176246,1758606687361,-400.0,0.0002164,2]
[387176247,1758606687371,-520.4,0.0002164,2]
[387176248,1758606687380,-400.0,0.0002164,2]
[387176249,1758606687390,-400.0,0.0002164,2]
[387176250,1758606687399,-400.0,0.0002164,2]
[387176251,1758606687409,-400.0,0.0002164,2]
[387176252,1758606687419,-400.0,0.0002164,2]
[387176253,1758606687428,-400.0,0.0002164,2]
[387176254,1758606687438,-400.0,0.0002164,2]
[387176255,1758606687447,-400.0,0.0002164,2]
[387176256,1758606687457,-400.0,0.0002164,2]
[387176257,1758606687466,-400.0,0.0002164,2]
[387176258,1758606687475,-431.34,0.0002164,2]
[387176259,1758606687485,-400.0,0.0002164,2]
[387176260,1758606687494,-184.1,0.0002164,2]
[387176261,1758606687504,-400.0,0.0002164,2]
[387176262,1758606687513,-192.31273823,0.0002164,2]
[387176263,1758606687522,-400.0,0.0002164,2]
[387176264,1758606687531,-400.0,0.0002164,2]
[387176265,1758606687540,-400.0,0.0002164,2]
[387176266,1758606687549,-555.13,0.0002164,2]
[387176267,1758606687558,-400.0,0.0002164,2]
[387176268,1758606687567,-400.0,0.0002164,2]
[387176269,1758606687576,-400.0,0.0002164,2]
[387176270,1758606687586,-400.0,0.0002164,2]
[387176271,1758606687596,-209.15702469,0.0002164,2]
[387176272,1758606687605,-400.0,0.0002164,2]
[387176273,1758606687614,-400.0,0.0002164,2]
[387176274,1758606687624,-821.12,0.0002164,2]
[387176275,1758606687633,-189.283736,0.0002164,2]
[387176276,1758606687642,-400.0,0.0002164,2]
[387176277,1758606687651,-400.0,0.0002164,2]
[387176278,1758606687660,-236.06358898,0.0002164,2]
[387176279,1758606687670,-400.0,0.0002164,2]
[387176280,1758606687679,-506.45000509,0.0002164,2]
[387176281,1758606687689,-400.0,0.0002164,2]
[387176282,1758606687699,-400.0,0.0002164,2]
[387176283,1758606687708,-400.0,0.0002164,2]
[387176284,1758606687718,-319.85424607,0.0002164,2]
[387176285,1758606687727,-265.91301413,0.0002164,2]
[387176286,1758606687737,-706.34,0.0002164,2]
[387176287,1758606687746,-400.0,0.0002164,2]
[387176288,1758606687756,-1759.45,0.0002164,2]
[387176289,1758606687766,-544.21,0.0002164,2]
[387176290,1758606687775,-400.0,0.0002164,2]
[387176291,1758606687784,-400.0,0.0002164,2]
[387176292,1758606687794,-400.0,0.0002164,2]
[387176293,1758606687803,-400.0,0.0002164,2]
[387176294,1758606687817,-400.0,0.0002164,2]
[387176295,1758606687826,-400.0,0.0002164,2]
[387176296,1758606687836,-431.44,0.0002164,2]
[387176297,1758606687845,-568.99,0.0002164,2]
[387176298,1758606687856,-400.0,0.0002164,2]
[387176299,1758606687866,-517.07,0.0002164,2]
[387176300,1758606687875,-400.0,0.0002164,2]
[387176301,1758606687886,-623.33,0.0002164,2]
[387176302,1758606687895,-400.0,0.0002164,2]
[387176303,1758606687905,-400.0,0.0002164,2]
[387176304,1758606687914,-546.18,0.0002164,2]
[387176305,1758606687923,-400.0,0.0002164,2]
[387176306,1758606687932,-400.0,0.0002164,2]
[387176307,1758606687941,-5720.27,0.0002164,2]
[387176308,1758606687951,-400.0,0.0002164,2]
[387176309,1758606687960,-400.0,0.0002164,2]
[387176310,1758606687969,-440.55,0.0002164,2]
[387176311,1758606687978,-400.0,0.0002164,2]
[387176312,1758606687988,-400.0,0.0002164,2]
[387176313,1758606687997,-667.61,0.0002164,2]
[387176314,1758606688007,-442.79713734,0.0002164,2]
[387176315,1758606688016,-743.54,0.0002164,2]
[387176316,1758606688025,-461.52,0.0002164,2]
[387176317,1758606688035,-847.6,0.0002164,2]
[387176318,1758606688045,-400.0,0.0002164,2]
[387176319,1758606688055,-400.0,0.0002164,2]
[387176320,1758606688064,-400.0,0.00021641,2]
[387176321,1758606688073,-500.0,0.00021668,2]
[387176322,1758606688083,-480.04545325,0.00021668,2]
[387176323,1758606688092,-1501.10356435,0.00021668,2]
[387176324,1758606688102,-1500.0,0.00021668,2]
[387176325,1758606688111,-1500.0,0.00021668,2]
[387176326,1758606688121,-161.02890075,0.00021671,4]
[387176327,1758606688132,-256.15657802,0.00021671,4]
[387176328,1758606688141,-258.0251637,0.00021671,4]
[387176329,1758606688151,-158.55250352,0.00021671,4]
[387176330,1758606688163,-161.42690098,0.00021671,4]
[387176331,1758606688172,-260.77689846,0.00021682,5]
[387176332,1758606688181,-246.87565,0.000217,2]
[387176333,1758606688191,-9774.27257195,0.00021701,2]
[387176334,1758606688200,-4962.39,0.00021757,2]
[387176335,1758606688210,-150.99,0.00021757,2]
[387176336,1758606688220,-400.0,0.00021761,2]
[387176337,1758606688230,-400.0,0.00021761,2]
[387176338,1758606688241,-490.21,0.00021761,2]
[387176339,1758606688251,-400.0,0.00021761,2]
[387176340,1758606688260,-400.0,0.00021761,2]
[387176341,1758606688269,-708.2,0.00021761,2]
[387176342,1758606688279,-400.0,0.00021761,2]
[387176343,1758606688288,-482.25153907,0.00021761,2]
[387176344,1758606688298,-1094.34,0.00021761,2]
[387176345,1758606688308,-593.45,0.00021761,2]
[387176346,1758606688318,-880.86,0.00021761,2]
[387176347,1758606688327,-1000.0,0.00021773,2]
[387176348,1758606688336,-267.46074303,0.00021805,2]
[387176349,1758606688346,-3925.0,0.00021824,2]
[387176350,1758606688355,-400.0,0.00021861,2]
[387176351,1758606688364,-485.82236276,0.00021861,2]
[387176352,1758606688374,-400.0,0.00021861,2]
[387176353,1758606688384,-400.0,0.00021861,2]
[387176354,1758606688394,-546.26,0.00021861,2]
[387176355,1758606688403,-400.0,0.00021861,2]
[387176356,1758606688413,-459.17,0.00021861,2]
[387176357,1758606688422,-400.0,0.00021861,2]
[387176358,1758606688432,-400.0,0.00021861,2]
[387176359,1758606688441,-400.0,0.00021861,2]
[387176360,1758606688450,-594.39,0.00021861,2]
[387176361,1758606688459,-167.146727,0.00021861,2]
[387176362,1758606688469,-400.0,0.00021861,2]
[387176363,1758606688478,-358.09674659,0.00021861,2]
[387176364,1758606688489,-400.0,0.00021861,2]
[387176365,1758606688499,-400.0,0.00021861,2]
[387176366,1758606688508,-413.61,0.00021861,2]
[387176367,1758606688518,-1791.94,0.00021861,2]
[387176368,1758606688527,-164.0886504,0.00021861,2]
[387176369,1758606688536,-400.0,0.00021861,2]
[387176370,1758606688545,-727.44,0.00021861,2]
[387176371,1758606688555,-400.0,0.00021861,2]
[387176372,1758606688565,-414.47,0.00021861,2]
[387176373,1758606688574,-424.1,0.00021861,2]
[387176374,1758606688584,-400.0,0.00021861,2]
[387176375,1758606688594,-680.28,0.00021861,2]
[387176376,1758606688603,-400.0,0.00021861,2]
[387176377,1758606688613,-400.0,0.00021861,2]
[387176378,1758606688622,-740.8,0.00021861,2]
[387176379,1758606688631,-780.25,0.00021861,2]
[387176380,1758606688641,-787.95,0.00021861,2]
[387176381,1758606688650,-400.9,0.00021861,2]
[387176382,1758606688659,-573.0,0.00021861,2]
[387176383,1758606688669,-439.84,0.00021861,2]
[387176384,1758606688678,-400.0,0.00021861,2]
[387176385,1758606688687,-807.44,0.00021861,2]
[387176386,1758606688696,-1136.38,0.00021861,2]
[387176387,1758606688706,-2423.02,0.00021861,2]
[387176388,1758606688715,-400.0,0.00021861,2]
[387176389,1758606688724,-11476.73221229,0.0002187,2]
[387176390,1758606688733,-563.0,0.00021893,2]
[387176391,1758606688742,-454.75,0.00021893,2]
[387176392,1758606688752,-604.44,0.00021893,2]
[387176393,1758606688761,-533.49,0.00021893,2]
[387176394,1758606688771,-694.1,0.00021893,2]
[387176395,1758606688780,-400.0,0.00021893,2]
[387176396,1758606688789,-422.59,0.00021893,2]
[387176397,1758606688799,-717.78,0.00021893,2]
[387176398,1758606688812,-431.15,0.00021893,2]
[387176399,1758606688822,-427.27,0.00021893,2]
[387176400,1758606688831,-614.75,0.00021893,2]
[387176401,1758606688840,-669.49,0.00021893,2]
[387176402,1758606688850,-400.0,0.00021893,2]
[387176403,1758606688859,-400.0,0.00021893,2]
[387176404,1758606688869,-418.8,0.00021893,2]
[387176405,1758606688879,-573.35,0.00021893,2]
[387176406,1758606688890,-403.2,0.00021893,2]
[387176407,1758606688900,-458.53334762,0.00021893,2]
[387176408,1758606688910,-400.0,0.00021893,2]
[387176409,1758606688920,-685.05,0.00021893,2]
[387176410,1758606688930,-435.99,0.00021893,2]
[387176411,1758606688939,-592.9,0.00021893,2]
[387176412,1758606688948,-528.93,0.00021893,2]
[387176413,1758606688957,-796.37,0.00021893,2]
[387176414,1758606688967,-461.3,0.00021893,2]
[387176415,1758606688977,-400.0,0.00021893,2]
[387176416,1758606688986,-462.94,0.00021893,2]
[387176417,1758606688997,-400.0,0.00021893,2]
[387176418,1758606689007,-400.0,0.00021893,2]
[387176419,1758606689016,-551.65,0.00021893,2]
[387176420,1758606689026,-445.76,0.00021893,2]
[387176421,1758606689035,-620.26,0.00021893,2]
[387176422,1758606689044,-474.03,0.00021893,2]
[387176423,1758606689053,-400.0,0.00021893,2]
[387176424,1758606689063,-400.0,0.00021893,2]
[387176425,1758606689072,-400.0,0.00021893,2]
[387176426,1758606689081,-400.0,0.00021893,2]
[387176427,1758606689090,-400.0,0.00021893,2]
[387176428,1758606689099,-1134.69,0.00021893,2]
[387176429,1758606689108,-553.2,0.00021893,2]
[387176430,1758606689117,-400.0,0.00021893,2]
[387176431,1758606689127,-400.0,0.00021893,2]
[387176432,1758606689136,-560.87,0.00021893,2]
[387176433,1758606689145,-669.97,0.00021893,2]
[387176434,1758606689154,-518.47,0.00021893,2]
[387176435,1758606689164,-603.36,0.00021893,2]
[387176436,1758606689173,-507.24,0.00021893,2]
[387176437,1758606689183,-1226.65,0.00021893,2]
[387176438,1758606689192,-510.08,0.00021893,2]
[387176439,1758606689201,-400.0,0.00021893,2]
[387176440,1758606689211,-713.80985483,0.00021893,2]
[387176441,1758606689630,-1531.01014517,0.00021893,2]
[387176442,1758606689640,-3137.54,0.00021893,2]
[387176443,1758606689649,-3479.82,0.00021893,2]
[387176444,1758606689658,-478.17,0.00021893,2]
[387176445,1758606689668,-1313.4,0.00021893,2]
[387176446,1758606689677,-400.0,0.00021893,2]
[387176447,1758606689686,-766.42,0.00021893,2]
[387176448,1758606689696,-400.0,0.00021893,2]
[387176449,1758606689705,-631.18,0.00021893,2]
[387176450,1758606689714,-1212.59926205,0.000219,2]
[387176451,1758606689723,-1709.4542211,0.000219,2]
[387176452,1758606690227,-2112.6357789,0.000219,2]
[387176453,1758606690237,-788.09,0.000219,2]
[387176454,1758606690247,-409.59743469,0.00021902,2]
[387176455,1758606690256,-154.7585176,0.00021907,2]
[387176456,1758606690266,-400.0,0.00021912,2]
[387176457,1758606690275,-479.31,0.00021912,2]
[387176458,1758606690284,-397.55079864,0.00021912,2]
[387176459,1758606690298,-229.42920136,0.00021912,2]
[387176460,1758606690308,-400.0,0.00021912,2]
[387176461,1758606690318,-600.75,0.00021912,2]
[387176462,1758606690327,-595.41,0.00021912,2]
[387176463,1758606690337,-51.155714,0.00021912,2]
[387176464,1758606690348,-348.844286,0.00021912,2]
[387176465,1758606690358,-400.0,0.00021912,2]
[387176466,1758606690368,-400.0,0.00021912,2]
[387176467,1758606690377,-400.0,0.00021912,2]
[387176468,1758606690596,-506.66195699,0.00021912,2]
[387176469,1758606690607,-400.0,0.00021912,2]
[387176470,1758606690617,-609.2,0.00021912,2]
[387176471,1758606690626,-400.0,0.00021912,2]
[387176472,1758606690636,-254.8,0.00021912,2]
[387176473,1758606690646,-400.0,0.00021912,2]
[387176474,1758606690655,-572.39,0.00021912,2]
[387176475,1758606690664,-400.0,0.00021912,2]
[387176476,1758606690673,-710.43,0.00021912,2]
[387176477,1758606690683,-400.0,0.00021912,2]
[387176478,1758606690692,-633.16,0.00021912,2]
[387176479,1758606690702,-400.0,0.00021912,2]
[387176480,1758606690711,-473.7,0.00021912,2]
[387176481,1758606690720,-400.0,0.00021912,2]
[387176482,1758606690729,-719.16,0.00021912,2]
[387176483,1758606690739,-407.66,0.00021912,2]
[387176484,1758606690749,-619.74,0.00021912,2]
[387176485,1758606690758,-637.23,0.00021912,2]
[387176486,1758606690767,-474.07,0.00021912,2]
[387176487,1758606690777,-872.07,0.00021912,2]
[387176488,1758606690787,-400.0,0.00021912,2]
[387176489,1758606690795,-1253.57,0.00021912,2]
[387176490,1758606690806,-151.62001566,0.00021912,2]
[387176491,1758606690819,-702.37,0.00021912,2]
[387176492,1758606690829,-400.0,0.00021912,2]
[387176493,1758606690839,-400.0,0.00021912,2]
[387176494,1758606690848,-400.0,0.00021912,2]
[387176495,1758606690859,-400.0,0.00021912,2]
[387176496,1758606690869,-803.52,0.00021912,2]
[387176497,1758606690878,-623.72,0.00021912,2]
[387176498,1758606690889,-758.11,0.00021912,2]
[387176499,1758606690900,-400.0,0.00021912,2]
[387176500,1758606690910,-400.0,0.00021912,2]
[387176501,1758606690919,-944.55,0.00021912,2]
[387176502,1758606690929,-887.18,0.00021912,2]
[387176503,1758606690938,-400.0,0.00021913,2]
[387176504,1758606690947,-204.29,0.00021913,2]
[387176505,1758606690957,-400.0,0.00021913,2]
[387176506,1758606690966,-400.0,0.00021913,2]
[387176507,1758606690975,-400.0,0.00021913,2]
[387176508,1758606690985,-560.23,0.00021913,2]
[387176509,1758606690995,-176.32883023,0.00021913,2]
[387176510,1758606691004,-400.0,0.00021913,2]
[387176511,1758606691014,-502.61,0.00021913,2]
[387176512,1758606691024,-694.79,0.00021913,2]
[387176513,1758606691034,-1317.09,0.00021913,2]
[387176514,1758606691044,-1372.63,0.00021913,2]
[387176515,1758606691054,-943.76,0.00021913,2]
[387176516,1758606691063,-462.92581526,0.00021913,2]
[387176517,1758606691072,-400.0,0.00021913,2]
[387176518,1758606691080,-543.44,0.00021913,2]
[387176519,1758606691088,-867.38,0.00021913,2]
[387176520,1758606691097,-401.56498752,0.00021913,2]
[387176521,1758606691105,-400.0,0.00021913,2]
[387176522,1758606691114,-1566.28,0.00021913,2]
[387176523,1758606691123,-1508.0,0.00021914,2]
[387176524,1758606691131,-500.0,0.00021914,2]
[387176525,1758606691139,-500.0,0.00021914,2]
[387176526,1758606691148,-466.0,0.00021914,2]
[387176527,1758606691156,-447.0,0.00021914,2]
[387176528,1758606691165,-500.0,0.00021914,2]
[387176529,1758606691173,-382.75950027,0.00021914,2]
[387176530,1758606691182,-400.0,0.00021914,2]
[387176531,1758606691191,-403.17,0.00021914,2]
[387176532,1758606691199,-400.0,0.00021914,2]
[387176533,1758606691207,-400.0,0.00021914,2]
[387176534,1758606691216,-333.54433213,0.00021914,2]
[387176535,1758606691225,-270.14319355,0.00021914,2]
[387176536,1758606691235,-422.99,0.00021914,2]
[387176537,1758606691245,-400.0,0.00021914,2]
[387176538,1758606691254,-400.0,0.00021914,2]
[387176539,1758606691262,-218.76715967,0.00021914,2]
[387176540,1758606691271,-400.0,0.00021914,2]
[387176541,1758606691280,-400.0,0.00021914,2]
[387176542,1758606691290,-400.0,0.00021914,2]
[387176543,1758606691298,-400.0,0.00021914,2]
[387176544,1758606691306,-400.0,0.00021914,2]
[387176545,1758606691314,-400.0,0.00021914,2]
[387176546,1758606691322,-364.94027852,0.00021914,14]
[387176547,1758606691330,-400.0,0.00021914,2]
[387176548,1758606691339,-400.0,0.00021914,2]
[387176549,1758606691347,-400.0,0.00021914,2]
[387176550,1758606691356,-400.0,0.00021914,2]
[387176551,1758606691364,-411.68,0.00021914,2]
[387176552,1758606691373,-400.0,0.00021914,2]
[387176553,1758606691382,-400.0,0.00021914,2]
[387176554,1758606691390,-400.0,0.00021914,2]
[387176555,1758606691398,-400.0,0.00021914,2]
[387176556,1758606691407,-400.0,0.00021914,2]
[387176557,1758606691415,-400.0,0.00021914,2]
[387176558,1758606691424,-400.0,0.00021914,2]
[387176559,1758606691432,-400.0,0.00021914,2]
[387176560,1758606691440,-459.39470732,0.00021914,2]
[387176561,1758606691448,-400.0,0.00021914,2]
[387176562,1758606691457,-400.0,0.00021914,2]
[387176563,1758606691466,-254.81,0.00021914,2]
[387176564,1758606691474,-400.0,0.00021914,2]
[387176565,1758606691483,-400.0,0.00021914,2]
[387176566,1758606691492,-400.0,0.00021914,2]
[387176567,1758606691501,-430.64,0.00021914,2]
[387176568,1758606691509,-400.0,0.00021914,2]
[387176569,1758606691519,-204.19063362,0.00021914,2]
[387176570,1758606691527,-400.0,0.00021914,2]
[387176571,1758606691536,-429.28,0.00021914,2]
[387176572,1758606691544,-400.0,0.00021914,2]
[387176573,1758606691552,-720.6,0.00021914,2]
[387176574,1758606691561,-400.0,0.00021914,2]
[387176575,1758606691570,-400.0,0.00021914,2]
[387176576,1758606691578,-400.0,0.00021914,2]
[387176577,1758606691587,-400.0,0.00021914,2]
[387176578,1758606691596,-221.2387345,0.00021914,2]
[387176579,1758606691605,-540.18,0.00021914,2]
[387176580,1758606691614,-400.0,0.00021914,2]
[387176581,1758606691623,-500.48,0.00021914,2]
[387176582,1758606691631,-460.67,0.00021914,2]
[387176583,1758606691640,-400.0,0.00021914,2]
[387176584,1758606691649,-400.0,0.00021914,2]
[387176585,1758606691658,-400.0,0.00021914,2]
[387176586,1758606691666,-400.0,0.00021914,2]
[387176587,1758606691675,-400.0,0.00021914,2]
[387176588,1758606691684,-400.0,0.00021914,2]
[387176589,1758606691693,-400.0,0.00021914,2]
[387176590,1758606691702,-400.0,0.00021914,2]
[387176591,1758606691711,-400.0,0.00021914,2]
[387176592,1758606691720,-400.0,0.00021914,2]
[387176593,1758606691727,-400.0,0.00021914,2]
[387176594,1758606691734,-707.53,0.00021914,2]
[387176595,1758606691742,-391.30054244,0.00021914,2]
[387176596,1758606691749,-173.99700125,0.00021914,2]
[387176597,1758606691757,-520.4,0.00021914,2]
[387176598,1758606691764,-400.0,0.00021914,2]
[387176599,1758606691771,-400.0,0.00021914,2]
[387176600,1758606691780,-400.0,0.00021914,2]